[Event "Polish Youth G18 Championship 2023"]
[Site "Jastrzebia Gora"]
[Date "2023.03.16"]
[Round "6.1"]
[White "Hertlein, Irena"]
[Black "Goraj, Barbara"]
[Result "0-1"]
[ECO "D05"]
[WhiteElo "1994"]
[BlackElo "2130"]
[Annotator "TA"]
[PlyCount "64"]
[EventDate "2023.03.11"]
[EventType "swiss"]
[EventCountry "POL"]
[SourceTitle "playchess.com"]
[Source "ChessBase"]
[SourceQuality "1"]
[TimeControl "40/5400+30:1800+30"]

{[%evp 21,64,10,27,0,18,0,16,13,11,0,10,8,12,-13,2,-96,0,-208,-228,-266,-237,-507,-486,-554,-548,-545,-516,-688,-693,-693,-512,-678,-678,-940,-949,-848,-690,-1415,-1334,-29984,-29985,-29984,-29985,-29984,-29985]} 1. d4 {[%emt 0:00:06]} d5 {[%emt 0:00:09]} 2. Nf3 {[%emt 0:02:12]} Nf6 {[%emt 0:01:33]} 3. e3 {[%emt 0:01:02]} c5 {[%emt 0:02:27]} 4. b3 {[%emt 0:10:03]} e6 {[%emt 0:04:34]} 5. Bd3 {[%emt 0:01:38]} Be7 {[%emt 0:02:01]} 6. Nbd2 {[%emt 0:01:05]} Nc6 {[%emt 0:02:22]} 7. Bb2 {[%emt 0:01:56]} O-O {[%emt 0:03:08]} 8. O-O {[%emt 0:00:55]} Nb4 {[%emt 0:03:13]} 9. Be2 {[%emt 0:01:49]} b6 {[%emt 0:01:40]} 10. a3 {[%emt 0:01:59]} Nc6 {[%emt 0:01:11]} 11. Bd3 {[%emt 0:03:55]} Bb7 {[%emt 0:01:10]} 12. c4 {[%emt 0:07:02] D05: Colle System with ...e6.} Rc8 {[%emt 0:12:03]} 13. Rc1 {[%emt 0:03:37]} Bd6 {[%emt 0:09:57]} 14. cxd5 {[%emt 0:13:55] The position is equal.} exd5 {[%emt 0:06:15]} 15. Ne5 {[%emt 0:04:47]} Re8 {[%emt 0:04:40][%cal Rc6e5]} 16. f4 {[%emt 0:07:02]} Qe7 {[%emt 0:04:07]} 17. Ra1 {[%emt 0:12:25]} (17. Re1 {simplifies} cxd4 18. exd4 Bxa3 19. Nxc6 Qxe1+ 20. Qxe1 Rxe1+ 21. Rxe1 Bxb2 22. Ne7+) 17... Na5 {[%emt 0:04:07][%cal Oc5c4] [#]} 18. Qb1 $146 {[%emt 0:09:36] [#]} (18. Re1 $11) ({Predecessor:} 18. Kh1 Rc7 19. dxc5 bxc5 20. Ng4 Nxg4 21. Qxg4 g6 22. f5 h5 23. Qd1 d4 24. e4 Qh4 25. Nf3 Qg4 26. Nd2 Qxd1 27. Raxd1 {0-1 Asabri,H (2228)-Brueggemann,J (2347) Balatonlelle IM 25th 2007 (3)}) 18... a6 {[%emt 0:12:09]} (18... c4 $1 $17 {[%cal Rc4d3]} 19. bxc4 dxc4 20. Ndxc4 Nxc4 {[%mdl 64] Remove Defender} 21. Bxc4 (21. Nxc4 Rxc4 {[%mdl 64] Remove Defender} 22. Bxc4 Qxe3+ 23. Kh1 Rc8 $17) 21... Bxe5 {[%mdl 64] Remove Defender} 22. fxe5 Rxc4) 19. g4 $2 {[%emt 0:11:13] [#]} (19. dxc5 $11 {and White is okay.} bxc5 20. Qc2) 19... c4 $1 $19 {[%emt 0:06:59][%mdl 512]} 20. bxc4 {[%emt 0:00:34]} (20. g5 cxd3) 20... dxc4 {[%emt 0:00:54]} 21. g5 $2 {[%emt 0:02:48]} (21. Bf5 c3 22. Bxc8 cxb2 23. Qxb2 Rxc8 24. Qxb6) 21... cxd3 {[%emt 0:02:19]} 22. gxf6 {[%emt 0:00:05]} gxf6 {[%emt 0:01:19] ...Rc2 is the strong threat.} 23. Qxd3 {[%emt 0:01:11]} fxe5 {[%emt 0:02:23]} 24. fxe5 {[%emt 0:00:00]} Qg5+ {[%emt 0:03:42]} 25. Kf2 {[%emt 0:00:01] Black must now prevent Rg1.} Qg2+ {[%emt 0:00:43]} 26. Ke1 {[%emt 0:00:00]} Be7 {[%emt 0:01:32]} 27. e4 {[%emt 0:02:21]} Bh4+ {[%emt 0:01:39]} 28. Kd1 {[%emt 0:00:01]} Bg5 {[%emt 0:00:02] ...Bxd2 would be deadly.} 29. Nf3 {[%emt 0:00:32]} Qxb2 {[%emt 0:00:47]} 30. Nxg5 {[%emt 0:01:06]} Qxa1+ {[%emt 0:00:29] Black mates.} 31. Ke2 {[%emt 0:00:00]} Qb2+ {[%emt 0:00:27]} 32. Ke3 {[%emt 0:00:08]} Rc3 {[%emt 0:00:09] A cool game by Goraj.   Weighted Error Value: White=1.30/Black=0.38} 0-1

[Event "Polish Youth G18 Championship 2023"]
[Site "Jastrzebia Gora"]
[Date "2023.03.16"]
[Round "6.2"]
[White "Starosta, Martyna"]
[Black "Kucharska, Helena"]
[Result "1-0"]
[ECO "D31"]
[WhiteElo "2138"]
[BlackElo "1779"]
[Annotator "TA"]
[PlyCount "45"]
[EventDate "2023.03.11"]
[EventType "swiss"]
[EventCountry "POL"]
[SourceTitle "playchess.com"]
[Source "ChessBase"]
[SourceQuality "1"]
[TimeControl "40/5400+30:1800+30"]

{[%evp 19,45,36,27,42,89,56,149,141,156,143,118,101,396,350,447,439,1121,1110,1033,1064,29986,29986,29990,29991,29991,29992,29992,29993]} 1. d4 {[%emt 0:00:03]} d5 {[%emt 0:01:03]} 2. c4 {[%emt 0:00:05]} c6 {[%emt 0:00:05]} 3. Nc3 {[%emt 0:00:07]} e6 {[%emt 0:00:40]} 4. e4 {[%emt 0:00:19]} dxe4 {[%emt 0:00:51]} 5. Nxe4 {[%emt 0:00:05]} Bb4+ {[%emt 0:00:14]} 6. Bd2 {[%emt 0:00:05]} Qxd4 {[%emt 0:01:33]} 7. Bxb4 {[%emt 0:00:06]} Qxe4+ {[%emt 0:00:06]} 8. Be2 {[%emt 0:00:06]} Nd7 {[%emt 0:00:30]} 9. Nf3 {[%emt 0:12:19]} c5 {[%emt 0:09:17]} 10. Bc3 {[%emt 0:00:11]} Ngf6 {[%emt 0:00:24]} 11. Qd6 {[%emt 0:01:46] D31: Queen's Gambit Declined: Semi-Slav without ...Nf6 (+ Marshall Gambit and Noteboom) and Exchange Variation lines without ...Nf6.} Qc6 {[%emt 0:06:26]} (11... a5 $14) 12. Qg3 {[%emt 0:00:12] Ne5 is the strong threat. White is much more active. The black rooks are badly placed.} Rg8 {[%emt 0:14:15] [#]} (12... O-O $14) 13. Ne5 $146 {[%emt 0:06:13] White is clearly better.} ({Predecessor:} 13. O-O Ne4 14. Qf4 Nxc3 15. bxc3 Nf6 16. Ne5 Qe4 17. Qxe4 Nxe4 18. Rac1 f6 19. Nd3 {½-½ Gales,R (1509)-Ignatescu,R (2294) ROM-ch blitz 2022 (1)}) 13... Qe4 {[%emt 0:07:31]} 14. Nxd7 {[%emt 0:11:12]} Nxd7 {[%emt 0:02:53]} 15. Kf1 {[%emt 0:01:35] Threatens to win with Bd3.} f5 $2 {[%emt 0:14:45][%mdl 8192] This costs Black the game.} (15... Qg6 $16) 16. Re1 {[%emt 0:02:30][%cal Ba1e1,Be1e6,Be6f6][%mdl 32]} g6 {[%emt 0:03:58]} 17. Bd3 {[%emt 0:02:19][%mdl 64] [#] Deflection} Qg4 {[%emt 0:04:56]} (17... Qc6 $142 18. Bxf5 {[%mdl 64] Pin} Nf8) 18. Rxe6+ $18 {[%emt 0:11:51]} Kf7 {[%emt 0:02:25] Black is weak on the dark squares} 19. Qd6 {[%emt 0:02:41][%csl Ge6][%cal Rd6e7]} Re8 {[%emt 0:04:23] [#] Prevents Qe7+} 20. Rf6+ $1 {[%emt 0:01:58][%mdl 512] White mates.} Kg8 {[%emt 0:00:15]} (20... Kg7 21. Rxg6+) 21. Qd5+ {[%emt 0:00:39]} Kg7 {[%emt 0:01:13]} 22. Qf7+ {[%emt 0:00:22]} Kh6 {[%emt 0:01:10]} 23. Bd2+ {[%emt 0:00:06] Weighted Error Value: White=0.13 (very precise) /Black=1.20} 1-0

[Event "Polish Youth G18 Championship 2023"]
[Site "Jastrzebia Gora"]
[Date "2023.03.16"]
[Round "6.3"]
[White "Zabrzanska, Weronika"]
[Black "Barwinska, Ewa"]
[Result "1-0"]
[ECO "B10"]
[WhiteElo "2021"]
[BlackElo "1963"]
[Annotator "TA"]
[PlyCount "127"]
[EventDate "2023.03.11"]
[EventType "swiss"]
[EventCountry "POL"]
[SourceTitle "playchess.com"]
[Source "ChessBase"]
[SourceQuality "1"]
[TimeControl "40/5400+30:1800+30"]

{[%evp 9,127,6,0,8,14,-4,3,-18,-20,-30,-12,-16,-14,-43,-35,-36,-37,-101,-66,-62,-67,-59,-61,-46,-78,-162,72,56,54,-66,-71,-77,-56,-57,50,0,0,0,0,13,19,15,44,0,20,15,32,-39,11,17,32,0,136,132,127,-39,0,0,0,0,10,12,12,8,7,10,12,-20,83,86,135,-2,-12,-13,0,0,4,4,0,0,144,158,336,343,343,343,343,339,331,323,323,316,592,204,552,535,1465,1465,1307,1342,1163,953,29964,29967,29970,29970,29971,29972,29972,29973,29973,29972,29978,29979,29979,29980,29983,29984,29986,29985]} 1. e4 {[%emt 0:00:03][%cal Be2e4,Be4e5][%mdl 32]} c6 {[%emt 0:00:07]} 2. Nf3 {[%emt 0:00:28]} d5 {[%emt 0:00:13]} 3. Nc3 {[%emt 0:00:11]} Nf6 {[%emt 0:00:34]} 4. e5 {[%emt 0:01:39]} Ne4 {[%emt 0:00:09]} 5. d4 {[%emt 0:04:10]} Nxc3 {[%emt 0:00:13]} 6. bxc3 {[%emt 0:00:04] B11: Caro-Kann: Two Knights Variation.} e6 {[%emt 0:05:49]} 7. Be2 {[%emt 0:03:05]} c5 {[%emt 0:02:36]} 8. O-O {[%emt 0:01:12] The position is equal.} c4 {[%emt 0:01:30]} 9. Ng5 {[%emt 0:01:35]} h6 {[%emt 0:06:54]} 10. Nh3 {[%emt 0:00:31]} Nc6 {[%emt 0:06:17]} 11. f4 {[%emt 0:02:50]} Qa5 {[%emt 0:02:39]} 12. Bd2 {[%emt 0:05:32]} Bd7 {[%emt 0:02:40]} 13. g4 {[%emt 0:02:46]} (13. Rb1 $15) 13... O-O-O {[%emt 0:05:32]} 14. f5 {[%emt 0:03:52] [#]} exf5 $146 {[%emt 0:07:53]} ({Predecessor:} 14... Be7 15. fxe6 fxe6 16. Nf4 Bg5 17. Ng6 Rhg8 18. Bxg5 hxg5 19. Qd2 Qa3 20. Rf3 Be8 21. Qxg5 {0-1 Munoz Pantoja,M (2451)-Alonso Rosell,A (2524) ESP-ch rapid 2016 (9)}) 15. gxf5 {[%emt 0:00:28]} g6 $1 {[%emt 0:02:11]} 16. Bg4 {[%emt 0:27:41] Strongly threatening fxg6.} h5 {[%emt 0:10:08]} 17. Ng5 {[%emt 0:03:34]} Nxe5 $2 {[%emt 0:10:16]} ({Black should play} 17... hxg4 $19 18. Nxf7 Nxe5 19. Nxh8 Bxf5) 18. Bh3 $1 $36 {[%emt 0:04:22][%mdl 2048] White is more active.} f6 {[%emt 0:07:00]} (18... Qb6 $2 19. Rb1 Qc6 20. dxe5 $18) 19. dxe5 {[%emt 0:08:10]} (19. Ne6 $1 $14 Ng4 20. Nxd8 (20. Bxg4 hxg4 21. Nxd8 Qxd8 $14) 20... Qxd8 21. fxg6 (21. Bxg4 hxg4 22. fxg6 Bd6 $16)) 19... fxg5 $15 {[%emt 0:05:22]} 20. Bxg5 {[%emt 0:03:38] Black must now prevent e6.} Bc5+ {[%emt 0:01:39]} 21. Kh1 {[%emt 0:00:09]} Rde8 {[%emt 0:07:59]} (21... Qxc3 $1 $15 22. Qf3 (22. Qxd5 $2 Bc6 $19) (22. Bxd8 Qxh3 23. Rf3 Qg4 $19) 22... Qxf3+ 23. Rxf3 Rdf8) 22. Bg2 {[%emt 0:00:41]} (22. Qxd5 $2 Bc6 23. fxg6+ Kb8 $19) (22. Qd2 $14) 22... gxf5 $11 {[%emt 0:01:56]} (22... Rxe5 $2 23. Bf6 (23. Bxd5 $2 Rxd5 {[%mdl 64] Remove Defender} 24. Qxd5 Bc6 $19) 23... Rhe8 24. Bxe5 Rxe5 25. fxg6 $18 (25. Bxd5 $2 Rxd5 {[%mdl 64] Remove Defender} 26. Qxd5 Bc6 $19)) (22... Bxf5 {is more complex.} 23. Qxd5 Rh7 24. Rab1 Bb6) 23. Bxd5 {[%emt 0:01:51]} Qc7 {[%emt 0:02:29]} 24. Bf6 {[%emt 0:02:54]} (24. Bxc4 $2 Rxe5 25. Be2 Rg8 $19) 24... Rhf8 {[%emt 0:02:08]} 25. Qf3 {[%emt 0:02:02]} Kb8 {[%emt 0:03:30]} 26. Rab1 {[%emt 0:00:43][%cal Rb1b7]} Bb6 {[%emt 0:00:23]} (26... b6 $5) 27. Rb4 {[%emt 0:00:35]} (27. Qxh5 Rg8 $14) 27... Be6 {[%emt 0:02:46]} 28. Rd1 {[%emt 0:06:24]} ({White should try} 28. Rxc4 $14 Qd7 29. Bxe6 Qxe6 30. Rf4) 28... Bxd5 {[%emt 0:02:32]} (28... Rg8 $15 29. Rxc4 (29. Qxh5 $2 Bxd5+ {[%mdl 64] Deflection} 30. Rxd5 Rg1#) 29... Qf7 30. Bxe6 Qxe6) 29. Qxd5 {[%emt 0:00:01]} Rc8 {[%emt 0:00:14][%cal Oh5h4]} (29... Qh7 {is interesting.} 30. Rf1 h4 31. a4 f4) 30. Rf1 {[%emt 0:02:47]} Ba5 {[%emt 0:00:58]} (30... Ka8 $11) 31. Rb5 $1 $16 {[%emt 0:04:00] White has more active pieces.} Bxc3 {[%emt 0:00:07] [#]} 32. Rg1 $2 {[%emt 0:01:51]} (32. Rxf5 Rf7) (32. Rf3 $1 $16 {[%cal Rf3c3]} a6 33. Rb1) 32... Qc6 {[%emt 0:00:46]} 33. Rg7 {[%emt 0:00:07]} Qxd5+ {[%emt 0:00:11]} 34. Rxd5 Rc6 {[%emt 0:01:06]} 35. Rdd7 {[%emt 0:00:24]} Rb6 {[%emt 0:00:19]} 36. Be7 {[%emt 0:01:25][%mdl 1024] White has compensation.} Re8 {[%emt 0:00:14]} 37. Bd6+ {[%emt 0:00:15]} Ka8 {[%emt 0:00:45][%cal Ob6d6]} 38. Rg3 {[%emt 0:03:15]} Rb1+ {[%emt 0:00:45]} (38... Bxe5 $2 39. Re7 (39. Bxe5 Rbe6 $18) 39... Rb1+ 40. Kg2 $18) (38... Bd4 $11 {keeps the balance.}) 39. Kg2 {[%emt 0:00:39]} Ba5 {[%emt 0:00:31]} (39... Bxe5 $2 40. Re7 Rc8 41. Bxe5 $18) (39... Bb4 $142) 40. Ra3 {[%emt 0:00:00]} ({Better is} 40. Rdg7 $16 {Rg8 is the strong threat.} b5 41. Rg8 Rxg8 42. Rxg8+ Kb7 43. e6) 40... Bb6 $11 {[%emt 0:00:00]} 41. Rc3 {[%emt 0:04:46]} Rg1+ {[%emt 0:05:24]} 42. Kh3 {[%emt 0:02:24]} Rg4 {[%emt 0:04:42]} 43. Rf7 {[%emt 0:00:27] Hoping for e6.} Bd4 {[%emt 0:04:40]} 44. Rf3 {[%emt 0:01:41] Threatens to win with c3.} a6 {[%emt 0:01:21]} (44... Bxe5 $2 45. Bxe5 Re4 46. R7xf5 $18) (44... b5 $11) 45. R7xf5 $16 {[%emt 0:01:31] And now Rf8 would win.} (45. R3xf5 $6 Re4 $11) 45... b5 $2 {[%emt 0:05:57] [#] Black cannot hold the game after this.} (45... Ka7 $16 46. R3f4 (46. Rxh5 Re4 $14) 46... Rxf4 47. Rxf4 Bb2) 46. Rf8 $1 $18 {[%emt 0:02:27]} (46. Rxh5 Re4 $14) 46... Rxf8 {[%emt 0:02:54]} 47. Rxf8+ {[%emt 0:00:07][%mdl 4096] Endgame KRB-KRB} Kb7 {[%emt 0:00:02]} 48. e6 {[%emt 0:00:22]} Kc6 {[%emt 0:00:41]} 49. e7 {[%emt 0:00:55]} Re4 {[%emt 0:00:06]} 50. Bb4 {[%emt 0:01:52]} (50. e8=R Rxe8 51. Rxe8 Kxd6 $18) (50. e8=N Re2 51. Bg3 (51. Rf4 Bc3 $15) 51... Rxc2 $15) 50... a5 $2 {[%emt 0:02:00]} (50... Bc3 {was called for.} 51. Rc8+ (51. e8=Q+ Rxe8 52. Rxe8 Bxb4 $16) 51... Kd7 52. Rd8+ (52. Bxc3 $2 Kxc8 53. Bb4 Kd7 $19) 52... Kc6 53. Bxc3 (53. e8=B+ Rxe8 54. Rxe8 Bxb4 $18) 53... Rxe7) 51. Ba3 $2 {[%emt 0:04:38]} ({Weaker is} 51. e8=B+ Kb6 $18) (51. e8=Q+ Rxe8 52. Rxe8 axb4 53. Kh4) 51... b4 $2 {[%emt 0:02:04] [#]} (51... Re3+ $2 52. Kh4 $18) (51... Bb2 {is tougher.} 52. Bxb2 (52. e8=R Rxe8 53. Rxe8 Bxa3 $16) 52... Rxe7) 52. Bxb4 $1 {[%emt 0:00:30][%mdl 576] Promotion} axb4 {[%emt 0:00:18]} (52... Bc3 53. Bxc3) 53. e8=Q+ {[%emt 0:00:03]} Rxe8 {[%emt 0:00:06]} 54. Rxe8 {[%emt 0:00:08] KR-KB} Kd5 {[%emt 0:01:25]} 55. Kh4 {[%emt 0:00:25]} Bf2+ {[%emt 0:01:11]} 56. Kxh5 {[%emt 0:00:06] White mates.} Kd4 {[%emt 0:00:06]} 57. Kg4 {[%emt 0:08:24]} Kc3 {[%emt 0:00:34]} 58. Rc8 {[%emt 0:05:24]} Be1 {[%emt 0:00:36]} 59. h4 {[%emt 0:00:22]} Bd2 {[%emt 0:02:21]} 60. Kf3 {[%emt 0:00:35]} Kxc2 {[%emt 0:00:16]} 61. Rxc4+ {[%emt 0:03:22]} Kb2 {[%emt 0:00:22]} 62. Ke2 {[%emt 0:01:14]} Bc3 {[%emt 0:00:05]} 63. Kd3 {[%emt 0:00:11]} Be1 {[%emt 0:00:21]} 64. Rc2+ {[%emt 0:00:05] Weighted Error Value: White=0.29 (precise) /Black=0.43} 1-0

[Event "Polish Youth G18 Championship 2023"]
[Site "Jastrzebia Gora"]
[Date "2023.03.16"]
[Round "6.4"]
[White "Nowak, Roksana"]
[Black "Lukasik, Zuzanna"]
[Result "1-0"]
[ECO "B67"]
[WhiteElo "1816"]
[BlackElo "1781"]
[Annotator "NA RC COMBH"]
[PlyCount "181"]
[EventDate "2023.03.11"]
[EventType "swiss"]
[EventCountry "POL"]
[SourceTitle "playchess.com"]
[Source "ChessBase"]
[SourceQuality "1"]
[TimeControl "40/5400+30:1800+30"]

{[%evp 18,181,49,42,32767,44,32767,78,69,32767,32767,69,32767,32767,92,90,32767,-12,49,0,48,32767,83,32767,32767,32767,58,32767,32767,32767,32767,53,32767,32767,32767,32767,32767,32767,69,32767,78,32767,80,32767,72,32767,32767,32767,87,63,66,32767,38,43,32767,32767,181,32767,32767,32767,32767,32767,32767,32767,96,24,32767,0,32767,35,93,85,117,129,122,32767,32767,145,143,118,32767,55,32767,40,82,64,74,75,114,8,94,74,32767,32767,108,101,32767,77,95,32767,106,85,95,75,86,72,85,28,52,33,85,70,110,86,79,85,192,179,185,65,32767,32767,32767,80,107,75,108,93,81,32767,32767,32767,87,74,89,81,152,99,554,191,957,744,723,139,7004,12845,29962,8095,29969,29963,29981,29982,12848,29983,29983,29984,29984,29985,29985,29986,29986,29987,29990,27999,29987,29988]} 1. e4 {[%emt 0:00:03]} c5 {[%emt 0:00:44]} 2. Nf3 {[%emt 0:00:07]} Nc6 {[%emt 0:00:37]} 3. d4 {[%emt 0:00:19]} cxd4 {[%emt 0:00:07]} 4. Nxd4 {[%emt 0:00:08]} Nf6 {[%emt 0:00:36]} 5. Nc3 {[%emt 0:00:22]} d6 {[%emt 0:00:12]} 6. Bg5 {[%emt 0:00:47]} e6 {[%emt 0:00:21]} 7. Qd2 {[%emt 0:00:29]} a6 {[%emt 0:00:59]} 8. O-O-O {[%emt 0:00:23]} Bd7 {[%emt 0:00:10]} 9. f4 {[%emt 0:01:05]} Rc8 {[%emt 0:09:03]} 10. Nf3 {[%emt 0:07:03]} Be7 {[%emt 0:06:17]} 11. Bxf6 {[%emt 0:07:21]} Bxf6 {[%emt 0:07:53]} 12. Qxd6 {[%emt 0:12:19]} Bxc3 {[%emt 0:00:34]} 13. bxc3 {[%emt 0:00:37]} Qe7 {[%emt 0:02:58]} 14. Be2 {[%emt 0:10:49]} Qxd6 {[%emt 0:04:30]} 15. Rxd6 {[%emt 0:00:08]} Ke7 {[%emt 0:00:17]} 16. Rhd1 {[%emt 0:00:37]} Rc7 {[%emt 0:00:58]} 17. Bc4 {[%emt 0:04:59]} ({White should play} 17. e5 $14) 17... h6 {[%emt 0:06:57]} (17... Rhc8 $1 $11) 18. g4 {[%emt 0:07:25]} (18. Bb3 $1 $14) 18... Rd8 {[%emt 0:08:25]} (18... Na5 $11 19. Ne5 Be8) 19. Bb3 {[%emt 0:10:40]} Be8 {[%emt 0:04:27]} 20. e5 {[%emt 0:04:20]} Rcd7 {[%emt 0:02:33]} 21. Rxd7+ {[%emt 0:00:09]} Bxd7 {[%emt 0:02:00]} 22. h3 {[%emt 0:06:16]} Rc8 {[%emt 0:08:32]} 23. Nd2 {[%emt 0:02:43]} Na5 {[%emt 0:04:20]} 24. Ne4 $1 {[%emt 0:02:18]} Rc7 {[%emt 0:06:08]} 25. Rd4 {[%emt 0:04:58]} Bc6 {[%emt 0:03:27]} 26. Nd6 {[%emt 0:00:43]} f6 {[%emt 0:04:23]} 27. Kd2 {[%emt 0:01:31]} Bd7 {[%emt 0:03:27]} ({Better is} 27... fxe5 $11 28. fxe5 g5) 28. exf6+ {[%emt 0:03:46]} Kxf6 {[%emt 0:01:01]} 29. Ne4+ {[%emt 0:01:55]} Ke7 {[%emt 0:00:53]} 30. g5 {[%emt 0:01:30]} Nc6 {[%emt 0:01:25]} 31. Rd3 {[%emt 0:01:32]} hxg5 {[%emt 0:01:59]} 32. Nxg5 {[%emt 0:01:10]} Nd8 {[%emt 0:02:17]} 33. Re3 {[%emt 0:01:14]} Rc5 {[%emt 0:00:52]} 34. Ke2 {[%emt 0:01:13]} Rf5 {[%emt 0:00:37]} 35. Kf3 {[%emt 0:01:00]} Kf6 {[%emt 0:02:32]} 36. h4 {[%emt 0:00:43]} Bc6+ {[%emt 0:02:22]} ({Black should try} 36... e5 $14) 37. Kg4 {[%emt 0:00:32]} Bd7 {[%emt 0:00:53]} 38. Kg3 {[%emt 0:03:49]} g6 {[%emt 0:01:57]} 39. Nf3 {[%emt 0:01:01]} Rc5 {[%emt 0:01:36]} 40. Rd3 {[%emt 0:00:00]} Ke7 {[%emt 0:00:00]} 41. Ng5 {[%emt 0:05:57]} (41. Ne5 $16 Be8 42. Re3) 41... Rf5 {[%emt 0:10:03]} 42. Re3 {[%emt 0:06:48]} (42. c4 $14) 42... Rc5 {[%emt 0:02:56]} 43. a4 {[%emt 0:04:28]} Rf5 {[%emt 0:03:43]} ({Black should play} 43... a5 $14) 44. Nf3 {[%emt 0:02:38]} Rf6 {[%emt 0:03:06]} (44... Rc5 $14) 45. Ne5 {[%emt 0:00:43]} Nc6 {[%emt 0:01:25]} 46. Nxc6+ {[%emt 0:01:00]} Bxc6 {[%emt 0:00:27]} 47. Re5 {[%emt 0:00:59]} Bd7 {[%emt 0:01:12]} 48. Kg4 {[%emt 0:00:48]} (48. Rg5 $142) 48... Rf8 {[%emt 0:04:08] [#]} 49. Bd5 {[%emt 0:03:45]} (49. Kg5 $1 $16) 49... b6 {[%emt 0:03:41]} 50. Bc4 {[%emt 0:05:01]} Kf6 {[%emt 0:01:32]} (50... Rc8 $1 $11 {keeps the balance.} 51. Bxa6 Rxc3) 51. Bxa6 {[%emt 0:01:12]} Bxa4 {[%emt 0:00:18]} 52. Bd3 {[%emt 0:00:41]} Rc8 {[%emt 0:01:41]} (52... Ra8 $142) 53. Rg5 {[%emt 0:02:31]} ({Only move:} 53. c4 $16) 53... Be8 {[%emt 0:00:17]} (53... Rxc3 $11 {keeps the balance.} 54. Rxg6+ (54. Bxg6 Bxc2 55. Bxc2 Rxc2 $11) 54... Kf7) 54. c4 {[%emt 0:00:11]} Rc7 {[%emt 0:00:33]} 55. Re5 {[%emt 0:00:38]} Rc8 {[%emt 0:01:11]} 56. Kg3 {[%emt 0:00:43]} Rc7 {[%emt 0:00:40]} 57. Rg5 {[%emt 0:00:24]} Rc8 {[%emt 0:00:35]} 58. Kf3 {[%emt 0:00:10]} Rc7 {[%emt 0:00:27]} 59. Ke3 {[%emt 0:01:12]} Rh7 {[%emt 0:00:25]} 60. Rg4 {[%emt 0:00:10]} Rh5 {[%emt 0:00:37]} 61. Kd4 {[%emt 0:00:29]} Bf7 {[%emt 0:01:42]} 62. Be2 {[%emt 0:00:49]} (62. Kc3 $16) 62... Be8 {[%emt 0:00:32]} 63. Ke3 {[%emt 0:01:33]} Bf7 {[%emt 0:00:32]} (63... Bc6 $11) 64. Kf3 {[%emt 0:00:14]} Ra5 {[%emt 0:00:47]} (64... Ke7 $14) 65. Rg5 {[%emt 0:00:38]} Ra3+ {[%emt 0:00:36]} 66. Bd3 {[%emt 0:00:10]} Ra1 {[%emt 0:00:27]} (66... Be8 $16) 67. Rb5 {[%emt 0:00:18]} Ra6 {[%emt 0:00:28]} 68. c5 $2 {[%emt 0:00:59]} (68. Ke3 $18) 68... bxc5 {[%emt 0:00:04]} 69. Rxc5 {[%emt 0:00:05]} Rd6 {[%emt 0:00:22]} 70. Ke4 {[%emt 0:00:09]} Be8 {[%emt 0:00:17]} 71. Ra5 {[%emt 0:00:33]} ({White should try} 71. Rc8 Bc6+ 72. Ke3) 71... Bc6+ {[%emt 0:00:13]} 72. Ke3 $16 {[%emt 0:00:06]} Rd8 {[%emt 0:01:24]} 73. h5 {[%emt 0:00:39]} gxh5 {[%emt 0:00:16]} 74. Rxh5 {[%emt 0:00:02]} Ke7 {[%emt 0:00:33]} 75. Rh6 {[%emt 0:00:17]} Bd7 {[%emt 0:00:49]} 76. c4 {[%emt 0:00:36]} Rc8 {[%emt 0:00:34] [#]} ({Black should try} 76... Ba4 77. Rh5 Bc6 78. Rh7+ Kd6) 77. Kd4 {[%emt 0:00:21]} (77. Rh7+ $1 $18 {is the precise move to win.} Kd6 78. Kd4) 77... Rc7 $2 {[%emt 0:00:32]} (77... Be8 $16 {is a better chance.} 78. Be4 Bc6) 78. Be4 $2 {[%emt 0:01:06]} (78. c5) 78... Rc8 $2 {[%emt 0:00:25]} (78... Ba4 79. Rh7+ Kd6 80. Rxc7 Kxc7) 79. Rh7+ {[%emt 0:00:31]} Kd8 {[%emt 0:00:33]} (79... Ke8) 80. Rh8+ $2 {[%emt 0:00:18]} (80. f5 $18 exf5 81. Bf3) 80... Kc7 $2 {[%emt 0:00:14]} 81. Rxc8+ {[%emt 0:00:28]} Bxc8 {[%emt 0:00:05]} 82. c5 {[%emt 0:00:18]} Kd7 {[%emt 0:00:25]} 83. Ke5 {[%emt 0:00:25]} Ke7 $2 {[%emt 0:00:59]} (83... Ba6 $16 84. c6+ Ke7) 84. Bd3 {[%emt 0:00:33]} Bd7 {[%emt 0:00:25]} 85. Bc4 {[%emt 0:00:23]} Kf7 {[%emt 0:00:54]} 86. f5 {[%emt 0:00:04]} Ke7 {[%emt 0:00:18]} 87. Bxe6 {[%emt 0:00:20]} Bc6 {[%emt 0:00:07]} 88. f6+ {[%emt 0:00:07]} Kf8 {[%emt 0:00:06]} 89. Kd6 {[%emt 0:00:29]} Be8 {[%emt 0:00:33]} 90. Bd7 {[%emt 0:00:16]} Bg6 {[%emt 0:00:13]} 91. c6 {[%emt 0:00:57]} 1-0